Cogmind - Beta 16 @@@ ROGUE MODE // 2025.11.10 @ 14:03:43 Player: ClassActJerk Result: Destroyed by G-34 Mercenary with Small Laser Performance ------------- Evolutions (1) 500 Regions Visited (2) 400 Robots Destroyed (5) 25 Value Destroyed (202) 202 Prototype IDs (2) 40 Alien Tech Used (0) 0 Bonus (0) 0 TOTAL SCORE: 1167 Bonus ------- None Cogmind --------- Core Integrity 0/400 Matter 287/300 Energy 100/100 System Corruption 0% Temperature Cool (6) Movement Core (700) Ox13 Location -9/Materials Parts ------- > --- POWER (1) -------- (None) > --- PROPULSION (2) --- (None) > --- UTILITY (3) ------ High-capacity Storage Unit > --- WEAPON (3) ------- (None) > --- INVENTORY (20) --- Ion Engine Improved Ion Engine Peak State ------------ > --- POWER ------------ Ion Engine > --- PROPULSION ------- Light Treads Light Treads > --- UTILITY ---------- High-capacity Storage Unit > --- WEAPON ----------- Small Laser Light Assault Rifle Grenade Launcher > --- INVENTORY -------- Ion Engine [Rating: 7] Favorites ----------- Power Ion Engine Engine Ion Engine Propulsion Light Treads Treads Light Treads Utility High-capacity Storage Unit Storage High-capacity Storage Unit Weapon Light Assault Rifle Energy Gun Small Laser Ballistic Gun Light Assault Rifle Ballistic Cannon Improved Light Cannon Launcher Grenade Launcher Special Weapon Welding Torch Build | -11 -10 -9 ------- Run | Yrd Mat Mat Slots Evolved 2 | . . 2 Power . | . . . Propulsion . | . . . Utility 1 | . . 1 Weapon 1 | . . 1 Parts Attached 11 | 5 2 4 Power 2 | 1 1 . Engine 2 | 1 1 . Core . | . . . Reactor . | . . . Propulsion 2 | 2 . . Treads 2 | 2 . . Leg . | . . . Wheel . | . . . Hover . | . . . Flight . | . . . Utility 2 | 1 1 . Device . | . . . Storage 2 | 1 1 . Processor . | . . . Hackware . | . . . Protection . | . . . Artifact . | . . . Weapon 5 | 1 . 4 Energy Gun 1 | . . 1 Energy Cannon . | . . . Ballistic Gun 1 | 1 . . Ballistic Cannon 1 | . . 1 Launcher 1 | . . 1 Special Weapon 1 | . . 1 Impact Weapon . | . . . Slashing Weapon . | . . . Piercing Weapon . | . . . Special Melee Weapon . | . . . Unidentified Prototypes . | . . . Parts Lost 8 | . . 8 Power 1 | . . 1 Propulsion 2 | . . 2 Utility . | . . . Weapon 5 | . . 5 Highest Loss Streak 7 | . . 7 To Critical Strikes . | . . . Average Backups 1 | 2 2 1 Power 1 | . 1 1 Propulsion . | . . . Utility . | . . . Weapon . | . 1 . Tool/Special . | . . . Unused Backups 2 | . . 2 Power 2 | . . 2 Propulsion . | . . . Utility . | . . . Weapon . | . . . Tool/Special . | . . . Average Slot Usage (%) 70 | . 71 69 Engine 11 | . 14 9 Treads 22 | . 28 20 Storage 11 | . 14 11 Energy Gun 7 | . . 9 Ballistic Gun 9 | . 14 8 Launcher 7 | . . 9 Peak Build Rating 7 | 5 6 7 Average Rating 5 | 2 5 6 On Entrance 3 | . 5 5 Avg Prop Armor Cover (%) . | . . . Naked Turns . | . . . Heaviest Build 50 | 9 46 50 Greatest Support 40 | 40 40 40 Greatest Overweight (x) 14 | . 1 14 Average Overweight (x) . | . . 1 Largest Inventory Capacity 20 | 8 20 20 Average Capacity 18 | 6 14 20 Most Carried 5 | 5 4 3 Average Carried 1 | 2 2 1 Final Capacity 20 | 8 20 20 Final Carried 3 | 1 3 2 Class Distribution -------------------- 54% | Gunner 45% | Mutant Dominant Class ---------------- Mutant | -10/Materials Gunner | -9/Materials Resources | -11 -10 -9 ----------- Run | Yrd Mat Mat Matter Collected 340 | 191 96 53 Remotely . | . . . Salvage Created 226 | . 96 130 Parts 11 | . 4 7 Haulers Intercepted . | . . . Recyclers Shooed . | . . . Parts Field Recycled . | . . . Retrieved Matter . | . . . Parts Self-Destructed . | . . . Prevented . | . . . Parts Restored . | . . . Kills | -11 -10 -9 ------- Run | Yrd Mat Mat Combat Hostiles Destroyed 5 | . 2 3 Guns 3 | . 2 1 Cannons 1 | . . 1 AOE 1 | . . 1 Classes Destroyed 2 | . 1 1 Grunt 3 | . 2 1 Sentry 2 | . . 2 Best Kill Streak 2 | . 2 1 Combat Bots Only 2 | . 2 1 Max Kills in Single Turn 1 | . 1 1 Gunslinging . | . . . Exploded 1 | . . 1 Melee . | . . . Uniques/NPCs Destroyed . | . . . Combat | -11 -10 -9 -------- Run | Yrd Mat Mat Hostile Shots Fired 138 | . 27 111 Missed 35 | . 7 28 Hits 103 | . 20 83 Projectile 103 | . 20 83 Damage Taken 1291 | . 227 1064 Core 457 | . 57 400 Absorbed by Shields . | . . . Core Remaining (%) 88 | 100 77 . Volleys Fired 34 | . 17 17 Largest 2 | . 1 2 Hottest 73 | . 20 73 Shots Fired 38 | . 17 21 Gun 25 | . 17 8 Cannon 9 | . . 9 Launcher 3 | . . 3 Special 1 | . . 1 Kinetic 26 | . 17 9 Thermal 9 | . . 9 Explosive 3 | . . 3 Electromagnetic . | . . . Robot Hit Streak 13 | . 13 3 Robot Miss Streak 5 | . 1 5 Penetration Max . | . . . Secondary Targets . | . . . Shots Hit Robots 25 | . 15 10 Core Hits 8 | . 3 5 Critical Kills . | . . . Critical Parts Destroyed . | . . . Critical Strikes 1 | . . 1 Blast 1 | . . 1 Melee Attacks . | . . . Impact . | . . . Slashing . | . . . Piercing . | . . . Sneak Attacks . | . . . Combat Hostiles . | . . . Follow-up Attacks . | . . . Damage Inflicted 347 | . 124 223 Guns 157 | . 124 33 Cannons 125 | . . 125 Explosions 65 | . . 65 Melee . | . . . Ramming . | . . . Kinetic 249 | . 124 125 Thermal 33 | . . 33 Explosive 65 | . . 65 Electromagnetic . | . . . Impact . | . . . Slashing . | . . . Piercing . | . . . Highest Corruption . | . . . Average Corruption . | . . . Corruption Purged . | . . . Corruption Blocked . | . . . Overload Shots . | . . . Overflow Damage 1 | . . 1 Projectiles . | . . . Explosions 1 | . . 1 Melee . | . . . Knockbacks 2 | . . 2 Impact . | . . . Kinetic 2 | . . 2 Secondary . | . . . Self-Inflicted Damage 85 | . . 85 Shots 3 | . . 3 Rammed . | . . . Targets Rammed . | . . . Kicked . | . . . Crushed . | . . . Highest Temperature 12 | . 12 8 Average Temperature 7 | . 10 5 Received Heat Transfer 594 | . 120 474 Siege Activations . | . . . Martial Activations . | . . . Shielding Activations . | . . . Robots Disrupted . | . . . Combat Hostiles . | . . . Robots Corrupted . | . . . Combat Hostiles . | . . . Parts Fried . | . . . Impact Corruptions . | . . . Robots Melted . | . . . Combat Hostiles . | . . . Parts Melted . | . . . Heat Transferred 75 | . . 75 Parts Sabotaged . | . . . Parts Stolen . | . . . Parts Stripped . | . . . Power Chain Reactions . | . . . Alert | -11 -10 -9 ------- Run | Yrd Mat Mat Maximum Alert Level . | . . . Low Security (%) 100 | 100 100 100 Level 1 . | . . . Level 2 . | . . . Level 3 . | . . . Level 4 . | . . . Level 5 . | . . . High Security . | . . . Max Security . | . . . Peak Influence 53 | . 50 53 Initial . | . . . Average 3 | . 7 2 Influence Increases 175 | . 50 125 Destroy 0b10 Robot/C 100 | . 40 60 Destroy Leader 30 | . 10 20 Disable Machine 15 | . . 15 Destroy Structure 15 | . . 15 Lose Combat Pursuer 15 | . . 15 Influence Decreases 175 | . 50 125 Time Decay 105 | . 50 55 Lost Part 70 | . . 70 Squads Dispatched 2 | . 1 1 Investigation 1 | . . 1 Extermination . | . . . Reinforcement 1 | . 1 . Assault . | . . . Garrison . | . . . Intercept . | . . . Searches Triggered . | . . . Construction Impeded . | . . . Haulers Reinforced . | . . . Active Scanning Responses . | . . . Cargo Convoy Interrupts . | . . . Stealth | -11 -10 -9 --------- Run | Yrd Mat Mat Distress Signals . | . . . Communications Jammed . | . . . Distress Signals . | . . . Times Spotted 11 | . 3 8 Peak Tracking Total 5 | . 2 5 Tactical Retreats 1 | . . 1 Traps | -11 -10 -9 ------- Run | Yrd Mat Mat Traps Triggered 1 | . . 1 Indirectly . | . . . Trap Hack Attempts . | . . . Triggered . | . . . Disarmed . | . . . Reprogrammed . | . . . Reused . | . . . Traps Extracted . | . . . Installed . | . . . Triggered . | . . . Machines | -11 -10 -9 ---------- Run | Yrd Mat Mat Machines Disabled 1 | . . 1 Max in Single Turn 1 | . . 1 Machines Repaired . | . . . Machines Dismantled . | . . . Machines Sabotaged . | . . . Overloaded Fab Kills . | . . . Hacking | -11 -10 -9 --------- Run | Yrd Mat Mat Machines Accessed 2 | . 2 . Terminals 2 | . 2 . Fabricators . | . . . Repair Stations . | . . . Recycling Units . | . . . Scanalyzers . | . . . Garrison Access . | . . . Total Hacks 4 | . 4 . Successful 2 | . 2 . Failed 2 | . 2 . Catastrophic 1 | . 1 . Database Lockouts . | . . . Manual . | . . . Terminals 4 | . 4 . Fabricators . | . . . Repair Stations . | . . . Recycling Units . | . . . Scanalyzers . | . . . Garrison Access . | . . . Terminal Hacks 2 | . 2 . Record 1 | . 1 . Prototype ID Bank 1 | . 1 . Fabricator Hacks . | . . . Repair Station Hacks . | . . . Recycling Unit Hacks . | . . . Scanalyzer . | . . . Garrison Access Hacks . | . . . Unauthorized Hacks . | . . . Terminals . | . . . Fabricators . | . . . Repair Stations . | . . . Recycling Units . | . . . Scanalyzers . | . . . Garrison Access . | . . . Data Cores Recovered . | . . . Used . | . . . Hacking Detections 1 | . 1 . Full Trace Events . | . . . Feedback Events . | . . . Feedback Blocked . | . . . Robot Schematics Acquired . | . . . Robots Built . | . . . Authchips . | . . . Time . | . . . Total Robot Build Rating . | . . . Part Schematics Acquired . | . . . Parts Built . | . . . Authchips . | . . . Time . | . . . Total Part Build Rating . | . . . Part Studies Acquired . | . . . Parts Repaired . | . . . Time . | . . . Parts Recycled . | . . . Recycled Matter . | . . . Retrieved Matter . | . . . Retrieved Components . | . . . Parts Scanalyzed . | . . . Part Schematics Acquired . | . . . Parts Damaged . | . . . Bothacking | -11 -10 -9 ------------ Run | Yrd Mat Mat Used RIF Installer . | . . . Robots Hacked . | . . . Non-combat . | . . . Combat . | . . . Robot Hacks Applied . | . . . Relay Couplers Released . | . . . Fabnet Peak Effective % . | . . . Robots Rewired . | . . . Allies Hacked . | . . . Hacks Repelled . | . . . Allies | -11 -10 -9 -------- Run | Yrd Mat Mat Total Allies . | . . . Largest Group . | . . . Highest-Rated Group . | . . . Highest-Rated Ally . | . . . Total Orders . | . . . Ally Attacks . | . . . Total Damage . | . . . Kills . | . . . Allies Corrupted . | . . . Allies Melted . | . . . Intel | -11 -10 -9 ------- Run | Yrd Mat Mat Active Infowar (turns) . | . . . Robot Analysis Total . | . . . Derelict Logs Recovered . | . . . Drone Launches . | . . . Drone Recoveries . | . . . Exploration | -11 -10 -9 ------------- Run | Yrd Mat Mat Turns Passed 1320 | 47 317 956 Spaces Moved 358 | 42 133 183 Core 35 | 27 . 8 Treads 323 | 15 133 175 Legs . | . . . Wheels . | . . . Hover . | . . . Flight . | . . . Fastest Speed 50 | 50 160 240 Average Speed 217 | 89 199 260 Slowest Speed 750 | 160 240 750 Overloaded Moves . | . . . Propulsion Burnouts . | . . . Robots Hopped . | . . . Potential Cave-ins . | . . . Cave-ins Triggered . | . . . Exploration Rate (%) 13 | 3 23 15 Regions Visited 2 Branch Regions . Pre-discovered Areas . | . . . Known Exits Taken . | . . . Unknown Exits Taken 2 | 1 1 . Scrap Searched . | . . . Spaces Dug . | . . . Terrain Destroyed 14 | . . 14 Melee . | . . . Projectile 1 | . . 1 AOE 13 | . . 13 Terrain Rammed . | . . . Walls Destroyed . | . . . Machines Disabled . | . . . Actions | -11 -10 -9 --------- Run | Yrd Mat Mat Total 870 | 51 174 645 Wait 455 | . 17 438 Move 356 | 41 132 183 Hop . | . . . Pick Up 12 | 5 4 3 Fast Attach 1 | 1 . . Attach 10 | 4 2 4 Detach . | . . . Swap . | . . . Drop 2 | . 2 . Fire 34 | . 17 17 Melee . | . . . Ram . | . . . Kick . | . . . Crush . | . . . Escape Stasis . | . . . Rewire . | . . . Trap . | . . . Miscellaneous . | . . . Route ------- -11/Scrapyard -10/Materials -9/Materials (discovered 1 exit: [*Sto]) History --------- Turn | Location | Event 7 | -11/Scrapyard | Discovered new exit (range 16) 48 | -11/Scrapyard | Entered Materials 316 | -10/Materials | Build established: Mutant 353 | -10/Materials | Discovered new exit (range 5) 365 | -10/Materials | Entered another Materials area 365 | -9/Materials | Evolved 2 slots: Utility x1, Weapon x1 672 | -9/Materials | Build established: Gunner 1012 | -9/Materials | Discovered new exit (range 16) 1280 | -9/Materials | Core integrity fell below 50% 1313 | -9/Materials | Core integrity fell below 20% 1321 | -9/Materials | Lost 7 parts (1p2n4w) 1321 | -9/Materials | Destroyed by G-34 Mercenary with Small Laser Last Messages --------------- Laser, Ion Engine, Aluminum Leg, Aluminum Leg. 01295_ G-34 Mercenary overheating. 01297_ G-34 Mercenary heat short circuits Ion Engine. 01297_ G-34 Mercenary overheating. 01298_ U-05 Engineer builds a Wall. 01298_ K-01 Serf collects debris. 01298_ G-34 Mercenary overheating. 01300_ G-34 Mercenary heat damages Broken Ion Engine, Aluminum Leg, Aluminum Leg. 01300_ U-05 Engineer lays Concrete. 01302_ K-01 Serf collects debris. 01302_ U-05 Engineer lays Concrete. 01304_ U-05 Engineer builds a Wall. 01304_ U-05 Engineer lays Concrete. 01306_ U-05 Engineer destroyed. 01306_ K-01 Serf collects debris. 01307_ U-05 Engineer lays Concrete. 01309_ U-05 Engineer builds a Wall. 01312_ K-01 Serf collects debris. Map ----- +----------------------------------------------------+ | ??# # """ ## #???# # #????????????????????? | | ### # """ + #####+######????????????????????? | | # # """ # # #????????????????????????? | | # + # # """#????????????????????????? | | # # """ + + """#????????????????????????? | | # # """ ## # """#????????????????????????? | | # # """ ## # #????????????????????????? | | + # ## #! #????????????????????????? | | # ########### ########????????????????????????? | | ## #?????????# ## #?????????##?????????????? | | ## #?????????# ## #??????### ####??????????? | | ## #?????????# ## #?##### ???????????? | | ## #??????#### ##""" ####### """????????????? | | #### ######## #""" # *# """" #?????????? | | ???# # #""" # # """ #?????????? | | ???# # " + # !+ #?????????? | | ???# # #""" # # #?????????? | | ??##+####+### #""" # ! # == #?????????? | | ??# ## ##""" ##=* # == #?????????? | | ??# ## ## ##% !## = #?????????? | | ??# """ ## ## ##! ###########?????????? | | ??# """"" ## #######"# ##??????????????????? | | ??# """"" ## #?????### ##??????????????????? | | ??# """"" ## #???????#%u%#???????????????????? | | ??# """ ## ##?????##g a##??????????????????? | | ??# # #######@ #??????????????????? | | ??#+###?##### k #??????????????????? | | ????????????# < % gu #??????????????????? | | ????????????# ! #??????????????????? | | ????????????# #######!% #??????????????????? | | ????????????#######?????##! ##??????????????????? | | ?????????????????????????# #???????????????????? | | ?????????????????????????# #???????????????????? | | ?????????????????????????# #???????????????????? | | ????????????????????????? !#???????????????????? | | ????????????????????????? ???????????????????? | | ????????????????????????? !! ##??????????????????? | | ????????????????????????? [! #???????????????????? | | ????????????????????????? [! "???????????????????? | | ????????????????????????? T???????????????????? | | ?????????????????????????? "???????????????????? | | ??????????????????????????? ?????????????????????? | | ?????????????????????????????????????????????????? | | ?????????????????????????????????????????????????? | | ?????????????????????????????????????????????????? | | ?????????????????????????????????????????????????? | | ?????????????????????????????????????????????????? | | ?????????????????????????????????????????????????? | | ?????????????????????????????????????????????????? | | ?????????????????????????????????????????????????? | +----------------------------------------------------+ Best States ------------- Heat Dissipation 28 Energy Generation 10 Energy Capacity 250 Matter Stores 300 Matter Capacity 300 Sight Range 16 Terrain Scan Density 10 Evasion (%) 50 Recoil Reduction 2 Item Schematics ----------------- None Robot Schematics ------------------ None Fabricated ------------ Nothing Repaired ---------- Nothing Studied --------- None Alien Tech Used ----------------- None Achievements -------------- None Challenges ------------ None Game ------ Seed IntegrityAngularTrident Manual? 0 Play Time 00:09:09 Cumulative 16.7 hours Start 2025.11.10 @ 13:54:58 End 2025.11.10 @ 14:03:43 Sessions 1 Manual Loads 0 Difficulty Rogue Special Mode None Game No. 49 Rogue 49 Adventurer 0 Explorer 0 Win Type - Total 0 Types 0/0/0/0/0/0/0/0/0/0 Lore% 5 Gallery% 17 Achievement% 12 Wizard Run 0 Options --------- Layout 1 ASCII 0 Keyboard 0 Movement Mouse Keybinds 0 Fullscreen 1 Font 24/Terminus Map View 50x35 Zoom Use 0% Tactical HUD 1 Map Filters NONE Filters NONE Steam 1 RUN: 369f5bb9-c0d7-4a78-aa7c-ca4ad894e67e